bitfinex-derivatives/quotes_BTCF0:USTF0_20250501
["timestamp","ask_amount","ask_price","bid_price","bid_amount"]
[1746123428870,0.2764968,96586.0,96585.0,0.47015284]
[1746123429074,0.2784968,96586.0,96585.0,0.47015284]
[1746123440387,0.2784968,96586.0,96585.0,0.37015284]
[1746123441881,0.2450968,96586.0,96585.0,0.67715174]
[1746123442384,0.2069944,96590.0,96589.0,0.2587262]
[1746123442582,0.2069944,96590.0,96589.0,0.4263262]
[1746123442988,0.2069944,96590.0,96589.0,0.4897262]
[1746123444689,0.19406283,96590.0,96589.0,0.4897262]
[1746123444888,0.206972,96601.0,96600.0,0.2069588]
[1746123445082,0.0341,96604.0,96601.0,0.0517411]
[1746123445283,0.2410604,96604.0,96603.0,0.2069604]
[1746123445688,0.2410604,96604.0,96603.0,0.2733604]
[1746123446793,0.2440604,96604.0,96603.0,0.2733604]
[1746123447093,0.003,96604.0,96603.0,0.2733604]
[1746123447292,0.2099582,96604.0,96603.0,0.2733604]
[1746123447493,0.003,96604.0,96603.0,0.2733604]
[1746123447693,0.006,96604.0,96603.0,0.2733604]
[1746123448193,0.2099582,96604.0,96603.0,0.2733604]
[1746123448386,0.2129582,96604.0,96603.0,0.2733604]
[1746123448586,0.006,96604.0,96603.0,0.2733604]
[1746123449481,0.2069338,96616.0,96608.0,0.0517373]
[1746123449686,0.0342,96614.0,96613.0,0.206939]
[1746123449881,0.053232,96620.0,96619.0,0.2069261]
[1746123450292,0.053232,96620.0,96619.0,0.3069261]
[1746123450499,0.2601624,96620.0,96619.0,0.3392261]
[1746123451792,0.28811898,96620.0,96619.0,0.3392261]
[1746123451992,0.29011898,96620.0,96619.0,0.3392261]
[1746123452191,0.32361898,96620.0,96619.0,0.3392261]
[1746123452493,0.32461898,96620.0,96619.0,0.3392261]
[1746123455105,0.32461898,96620.0,96619.0,0.3732261]
[1746123457306,0.32461898,96620.0,96619.0,0.3409261]
[1746123459913,0.32461898,96620.0,96619.0,0.3069261]
[1746123461604,0.32461898,96620.0,96619.0,0.1]
[1746123462208,0.2069261,96619.0,96618.0,0.0634]
[1746123462505,0.2069368,96614.0,96608.0,0.0517374]
[1746123462709,0.2069368,96614.0,96610.0,0.2069443]
[1746123463196,0.2069368,96614.0,96611.0,0.2069425]
[1746123463399,0.2745368,96614.0,96611.0,0.2069425]
[1746123464198,0.2745368,96614.0,96609.0,0.2069459]
[1746123464511,0.2745368,96614.0,96606.0,0.2703934]
[1746123464812,0.2745368,96614.0,96607.0,0.2069509]
[1746123465203,0.2745368,96614.0,96608.0,0.2069494]
[1746123465606,0.2745368,96614.0,96606.0,0.1151783]
[1746123465805,0.2745368,96614.0,96607.0,0.2069503]
[1746123466006,0.2745368,96614.0,96606.0,0.06344]
[1746123466613,0.2745368,96614.0,96607.0,0.2069517]
[1746123466814,0.2745368,96614.0,96608.0,0.2069487]
[1746123467415,0.2745368,96614.0,96606.0,0.2703921]
[1746123467614,0.2745368,96614.0,96608.0,0.2069492]
[1746123467812,0.2745368,96614.0,96609.0,0.2069474]
[1746123468113,0.2745368,96614.0,96606.0,0.2703931]
[1746123468316,0.2745368,96614.0,96606.0,0.2703937]
[1746123468514,0.2745368,96614.0,96607.0,0.2069513]
[1746123471415,0.2745368,96614.0,96606.0,0.2703928]
[1746123471617,0.2745368,96614.0,96606.0,0.06344]
[1746123471813,0.2745368,96614.0,96609.0,0.2069466]
[1746123472619,0.2745368,96614.0,96607.0,0.2413512]
[1746123472813,0.2745368,96614.0,96609.0,0.206947]
[1746123473014,0.2745368,96614.0,96610.0,0.2069453]
[1746123473316,0.2765368,96614.0,96608.0,0.2069483]
[1746123474018,0.2069475,96609.0,96608.0,0.2069483]
[1746123474316,0.2069475,96609.0,96608.0,0.3069483]
[1746123474717,0.2737475,96609.0,96608.0,0.3069483]
[1746123475121,0.2747475,96609.0,96608.0,0.3069483]
[1746123476915,0.2757475,96609.0,96608.0,0.3069483]
[1746123477614,0.2757475,96609.0,96608.0,0.4088483]
[1746123477814,0.2747475,96609.0,96608.0,0.4088483]
[1746123478414,0.2737475,96609.0,96608.0,0.4108483]
[1746123479913,0.2410475,96609.0,96608.0,0.4108483]
[1746123481023,0.22811922,96609.0,96608.0,0.4108483]
[1746123490726,0.22811922,96609.0,96608.0,0.3431483]
[1746123490932,0.22811922,96609.0,96608.0,0.3089483]
[1746123491133,0.22811922,96609.0,96608.0,0.002]
[1746123491328,0.22811922,96609.0,96608.0,0.2089497]
[1746123491528,0.26221922,96609.0,96608.0,0.2089497]
[1746123493227,0.24928986,96609.0,96608.0,0.2089497]
[1746123494936,0.24928986,96609.0,96608.0,0.3089497]
[1746123495740,0.24928986,96609.0,96608.0,0.3772497]
[1746123496128,0.0682,96609.0,96608.0,0.3772497]
[1746123496326,0.2069435,96611.0,96610.0,0.2069454]
[1746123496528,0.0517328,96617.0,96613.0,0.0517345]
[1746123496725,0.2069325,96617.0,96616.0,0.6711934]
[1746123496928,0.2069325,96617.0,96616.0,0.7711934]
[1746123498038,0.2079325,96617.0,96616.0,0.7711934]
[1746123499131,0.2089325,96617.0,96616.0,0.7711934]
[1746123505134,0.002,96617.0,96616.0,0.7711934]
[1746123505836,0.0357,96617.0,96616.0,0.7711934]
[1746123506037,0.2426304,96617.0,96616.0,0.7711934]
[1746123508644,0.22970283,96617.0,96616.0,0.7711934]
[1746123510644,0.22970283,96617.0,96616.0,0.4608]
[1746123511036,0.22970283,96617.0,96616.0,0.6677325]
[1746123513131,0.22970283,96617.0,96616.0,0.3069325]
[1746123514147,0.22970283,96617.0,96616.0,0.1]
[1746123514547,0.22970283,96617.0,96616.0,0.3069325]
[1746123514848,0.22970283,96617.0,96616.0,0.2069325]
[1746123515648,0.2069368,96615.0,96614.0,0.2069358]
[1746123516044,0.2783368,96615.0,96614.0,0.2069358]
[1746123520345,0.2783368,96615.0,96614.0,0.2413358]
[1746123521640,0.2783368,96615.0,96614.0,0.3413358]
[1746123522047,0.2783368,96615.0,96614.0,0.1]
[1746123522245,0.26540859,96615.0,96614.0,0.3069368]
[1746123522641,0.26540859,96615.0,96614.0,0.1]
[1746123522955,0.22940859,96615.0,96614.0,0.1]
[1746123523250,0.59020859,96615.0,96614.0,0.1]
[1746123523558,0.206939,96613.0,96612.0,0.06336]
[1746123525153,0.2069518,96607.0,96606.0,0.206953]
[1746123525348,0.2069561,96605.0,96604.0,0.3678814]
[1746123525542,0.2069561,96605.0,96604.0,0.4678814]
[1746123526051,0.2398561,96605.0,96604.0,0.4678814]
[1746123526442,0.2398561,96605.0,96604.0,0.6758396]
[1746123526642,0.2398561,96605.0,96604.0,0.4688814]
[1746123526943,0.2398561,96605.0,96604.0,0.4698814]
[1746123527236,0.2398561,96605.0,96604.0,0.4688814]
[1746123528359,0.2398561,96605.0,96604.0,0.4678814]
[1746123529150,0.2398561,96605.0,96604.0,0.7092396]
[1746123529451,0.2398561,96605.0,96604.0,0.3413582]
[1746123533955,0.2398561,96605.0,96604.0,0.3745582]
[1746123534459,0.2069561,96605.0,96604.0,0.3745582]
[1746123535460,0.2069561,96605.0,96604.0,0.3765582]
[1746123535757,0.2069561,96605.0,96604.0,0.3775582]
[1746123536862,0.2069561,96605.0,96604.0,0.3765582]
[1746123538560,0.2069561,96605.0,96604.0,0.3755582]
[1746123538762,0.2069561,96605.0,96604.0,0.3765582]
[1746123541367,0.2069561,96605.0,96604.0,0.3755582]
[1746123541865,0.2069561,96605.0,96604.0,0.3765582]
[1746123542165,0.2069561,96605.0,96604.0,0.3755582]
[1746123542362,0.2069457,96612.0,96611.0,0.2069432]
[1746123542555,0.0314,96617.0,96616.0,0.2069325]
[1746123542751,0.4242,96645.0,96616.0,0.2069325]
[1746123542752,0.2909422,96627.0,96626.0,0.2069111]
[1746123542957,0.2586422,96627.0,96626.0,0.2069111]
[1746123543159,0.28018453,96627.0,96626.0,0.2069111]
[1746123543359,0.28018453,96627.0,96626.0,0.2412111]
[1746123544866,0.28418453,96627.0,96626.0,0.2412111]
[1746123545165,0.28618453,96627.0,96626.0,0.2412111]
[1746123545466,0.28418453,96627.0,96626.0,0.2412111]
[1746123548571,0.28418453,96627.0,96626.0,0.3412111]
[1746123548867,0.28418453,96627.0,96626.0,0.3069111]
[1746123549055,0.28418453,96627.0,96626.0,0.1]
[1746123549259,0.28418453,96627.0,96626.0,0.3069111]
[1746123552774,0.28418453,96627.0,96626.0,0.2069111]
[1746123564081,0.28418453,96627.0,96626.0,0.3069111]
[1746123570185,0.28418453,96627.0,96626.0,0.1]
[1746123570392,0.28418453,96627.0,96626.0,0.3069111]
[1746123576589,0.28418453,96627.0,96626.0,0.2069111]
[1746123577089,0.27125766,96627.0,96626.0,0.2069111]
[1746123577890,0.27125766,96627.0,96626.0,0.3069111]
[1746123581887,0.63205766,96627.0,96626.0,0.1]
[1746123582679,0.63205766,96627.0,96626.0,0.3069111]
[1746123585492,0.27125766,96627.0,96626.0,0.3069111]
[1746123586394,0.27125766,96627.0,96626.0,0.6677111]
[1746123586587,0.02554233,96627.0,96626.0,0.6677111]
[1746123586793,0.23245133,96627.0,96626.0,0.6677111]
[1746123593099,0.21952535,96627.0,96626.0,0.6677111]
[1746123593895,0.21952535,96627.0,96626.0,0.3069111]
[1746123594302,0.21952535,96627.0,96626.0,0.1]
[1746123597698,0.21952535,96627.0,96626.0,0.3069111]
[1746123600007,0.21952535,96627.0,96626.0,0.62309265]
[1746123600807,0.21952535,96627.0,96626.0,0.41618155]
[1746123603198,0.21952535,96627.0,96626.0,0.1]
[1746123610908,0.32301735,96627.0,96626.0,0.1]
[1746123611614,0.2069475,96609.0,96608.0,0.29093836]
[1746123612211,0.3028475,96609.0,96608.0,0.29093836]
[1746123612810,0.3028475,96609.0,96608.0,0.29293836]
[1746123613005,0.3028475,96609.0,96608.0,0.29393836]
[1746123613811,0.3028475,96609.0,96608.0,0.003]
[1746123614210,0.3028475,96609.0,96608.0,0.001]
[1746123614422,0.3038475,96609.0,96608.0,0.001]
[1746123614916,0.2069582,96604.0,96603.0,0.0314]
[1746123616220,0.2677582,96604.0,96603.0,0.0314]
[1746123618715,0.2677582,96604.0,96602.0,0.00155275]
[1746123618716,0.2069604,96603.0,96602.0,0.00155275]
[1746123619221,0.2069904,96589.0,96588.0,0.06332]
[1746123620020,0.2069968,96586.0,96584.0,0.0015524]
[1746123620224,0.2069989,96585.0,96584.0,0.0015524]
[1746123620925,0.2459213,96585.0,96584.0,0.0015524]
[1746123621122,0.2791213,96585.0,96584.0,0.0015524]
[1746123621319,0.6399213,96585.0,96584.0,0.0015524]
[1746123621719,0.6429213,96585.0,96584.0,0.0015524]
[1746123623624,0.2070161,96577.0,96576.0,0.0324]
[1746123623929,0.5678161,96577.0,96576.0,0.04028856]
[1746123624626,0.6319161,96577.0,96576.0,0.04028856]
[1746123626416,0.6319161,96577.0,96576.0,0.00788856]
[1746123626621,0.2070182,96576.0,96575.0,0.00765267]
[1746123626826,0.2070182,96576.0,96575.0,1e-08]
[1746123627130,0.2070482,96563.0,96562.0,0.2070467]
[1746123627520,0.2397482,96563.0,96562.0,0.2070467]
[1746123628429,0.2397482,96563.0,96562.0,0.2130467]
[1746123630238,0.2397482,96563.0,96562.0,0.25227867]
[1746123636526,0.2397482,96563.0,96562.0,0.01373197]
[1746123636727,0.2711482,96563.0,96562.0,0.01373197]
[1746123637528,0.2711482,96563.0,96562.0,0.01173197]
[1746123637936,0.2721482,96563.0,96562.0,0.00873197]
[1746123638322,0.2731482,96563.0,96562.0,0.00773197]
[1746123638525,0.2070633,96555.0,96554.0,0.0317]
[1746123639438,0.2724633,96555.0,96554.0,0.2387654]
[1746123639936,0.2724633,96555.0,96554.0,0.2703654]
[1746123640934,0.2724633,96555.0,96554.0,0.2713654]
[1746123641438,0.2724633,96555.0,96554.0,0.0643]
[1746123641734,0.2724633,96555.0,96554.0,0.0337]
[1746123642128,0.2724633,96555.0,96554.0,0.04143455]
[1746123642329,0.6332633,96555.0,96554.0,0.04143455]
[1746123642635,0.6332633,96555.0,96554.0,0.00973455]
[1746123645938,0.6332633,96555.0,96554.0,0.21679995]
[1746123646139,0.6332633,96555.0,96554.0,0.00973455]
[1746123647335,0.6332633,96555.0,96554.0,0.21679995]
[1746123647542,0.2724633,96555.0,96554.0,0.00973455]
[1746123647931,0.2724633,96555.0,96554.0,0.21679995]
[1746123648132,0.3608,96579.0,96554.0,0.47410255]
[1746123648333,0.2070633,96555.0,96554.0,0.37053455]
[1746123648627,0.2070633,96555.0,96554.0,0.00973455]
[1746123649130,0.2070633,96555.0,96554.0,0.00873455]
[1746123649337,0.2070633,96555.0,96554.0,0.00973455]
[1746123649933,0.2381633,96555.0,96554.0,0.00873455]
[1746123650133,0.2381633,96555.0,96554.0,0.00973455]
[1746123652842,0.2381633,96555.0,96554.0,0.002]
[1746123657240,0.2381633,96555.0,96554.0,0.102]
[1746123659748,0.3417313,96555.0,96554.0,0.102]
[1746123661038,0.2381633,96555.0,96554.0,0.102]
[1746123662139,0.2381633,96555.0,96554.0,0.101]
[1746123662351,0.2070675,96553.0,96552.0,7.578e-05]
[1746123663042,0.2380675,96553.0,96552.0,0.10007578]
[1746123663640,0.2380675,96553.0,96552.0,0.10107578]
[1746123665154,0.2380675,96553.0,96552.0,0.10207578]
[1746123666348,0.2070675,96553.0,96552.0,0.10207578]
[1746123666840,0.2388675,96553.0,96552.0,0.10207578]
[1746123667249,0.2700675,96553.0,96552.0,0.10207578]
[1746123685961,0.6308675,96553.0,96552.0,0.10207578]
[1746123689165,0.6308675,96553.0,96552.0,0.00207578]
[1746123692360,0.2382675,96553.0,96552.0,0.00207578]
[1746123692665,0.2070675,96553.0,96552.0,0.20914548]
[1746123693359,0.2070675,96553.0,96552.0,0.00207578]
[1746123693564,0.2070675,96553.0,96552.0,0.06487578]
[1746123694155,0.2070675,96553.0,96552.0,0.16487578]
[1746123696267,0.5678675,96553.0,96552.0,0.16487578]
[1746123696567,0.2387675,96553.0,96552.0,0.16487578]
[1746123699160,0.2387675,96553.0,96552.0,0.10207578]
[1746123701971,0.2070675,96553.0,96552.0,0.10207578]
[1746123702274,0.2070675,96553.0,96552.0,0.13417578]
[1746123702862,0.2070675,96553.0,96552.0,0.34124548]
[1746123703057,0.2070675,96553.0,96552.0,0.13417578]
[1746123703462,0.2070675,96553.0,96552.0,0.34124548]
[1746123703767,0.2070675,96553.0,96552.0,0.37444548]
[1746123706866,0.2070675,96553.0,96552.0,0.16737578]
[1746123707067,0.2070675,96553.0,96552.0,0.37444548]
[1746123714264,0.2376675,96553.0,96552.0,0.37444548]
[1746123715281,0.2376675,96553.0,96552.0,0.10207578]
[1746123715480,0.2690675,96553.0,96552.0,0.10207578]
[1746123715868,0.2690675,96553.0,96552.0,0.30914548]
[1746123716672,0.0306,96553.0,96552.0,0.30914548]
[1746123716872,0.2588278,96558.0,96557.0,0.207059]
[1746123717177,0.3105925,96558.0,96557.0,0.307059]
[1746123717869,0.3105925,96558.0,96557.0,0.370559]
[1746123721978,0.3105925,96558.0,96557.0,0.371559]
[1746123722384,0.3105925,96558.0,96557.0,0.338459]
[1746123722777,0.3105925,96558.0,96557.0,0.101]
[1746123722982,0.3406925,96558.0,96557.0,0.1]
[1746123723376,0.7014925,96558.0,96557.0,0.1]
[1746123723776,0.3406925,96558.0,96557.0,0.1]
[1746123736584,0.34063915,96558.0,96557.0,0.1]
[1746123741298,0.34063915,96558.0,96548.0,0.12198017]
[1746123741299,0.2070761,96549.0,96548.0,0.07091478]
[1746123741585,0.2070804,96547.0,96546.0,0.031]
[1746123741789,0.2070804,96547.0,96546.0,0.131]
[1746123742190,0.26845618,96547.0,96546.0,0.131]
[1746123742790,0.26945618,96547.0,96546.0,0.131]
[1746123743090,0.26845618,96547.0,96546.0,0.1]
[1746123743286,0.26945618,96547.0,96546.0,0.1]
[1746123744191,0.27045618,96547.0,96546.0,0.1]
[1746123745290,0.27045618,96547.0,96546.0,0.1311]
[1746123746395,0.27045618,96547.0,96546.0,0.1]
[1746123750300,0.27045618,96547.0,96546.0,0.1302]
[1746123753698,0.27045618,96547.0,96546.0,0.1]
[1746123754994,0.27045618,96547.0,96546.0,0.1305]
[1746123757006,0.2070976,96539.0,96538.0,0.03156422]
[1746123757201,0.0517714,96545.0,96517.0,0.06432]
[1746123757202,0.0517751,96538.0,96517.0,0.06432]
[1746123757504,0.0517751,96538.0,96526.0,9e-08]
[1746123757505,0.2071233,96527.0,96526.0,9e-08]
[1746123757709,0.2071233,96527.0,96505.0,0.3608]
[1746123757710,0.207162,96509.0,96508.0,0.36744983]
[1746123757902,0.207162,96509.0,96508.0,0.3283932]
[1746123758708,0.20725705,96509.0,96508.0,0.3283932]
[1746123759916,0.20725705,96509.0,96508.0,0.3323932]
[1746123760514,0.20725705,96509.0,96508.0,0.3373932]
[1746123761418,0.20725705,96509.0,96508.0,0.009]
[1746123763115,0.20725705,96509.0,96508.0,0.5769641]
[1746123763805,9.505e-05,96509.0,96508.0,0.6805801]
[1746123764011,0.0517857,96518.0,96508.0,0.6805801]
[1746123764012,0.2071512,96515.0,96514.0,0.2071498]
[1746123764321,0.2071512,96515.0,96514.0,0.0931]
[1746123765019,0.20721785,96515.0,96514.0,0.0931]
[1746123765711,0.23961785,96515.0,96514.0,0.0931]
[1746123765906,0.23961785,96515.0,96514.0,0.3032512]
[1746123766313,0.23961785,96515.0,96514.0,0.0641]
[1746123766508,0.27151785,96515.0,96514.0,0.0671]
[1746123766916,0.27151785,96515.0,96514.0,0.0366]
[1746123767514,0.27151785,96515.0,96514.0,0.0684]
[1746123768616,0.23961785,96515.0,96514.0,0.0684]
[1746123769526,0.23961785,96515.0,96514.0,0.2755512]
[1746123769725,0.23961785,96515.0,96514.0,0.0684]
[1746123770716,0.27241785,96515.0,96514.0,0.0684]
[1746123772218,0.27241785,96515.0,96514.0,0.2755512]
[1746123773220,0.30371785,96515.0,96514.0,0.2755512]
[1746123780040,0.27241785,96515.0,96514.0,0.2755512]
[1746123780221,6.665e-05,96515.0,96514.0,0.2755512]
[1746123780430,0.0307,96526.0,96519.0,0.0517849]
[1746123780735,0.2071179,96530.0,96529.0,0.207119]
[1746123781435,0.2071179,96530.0,96529.0,0.239719]
[1746123781622,0.0311,96536.0,96532.0,0.0517779]
[1746123781829,0.2071049,96536.0,96535.0,0.6714539]
[1746123782028,0.2071049,96536.0,96535.0,0.7360939]
[1746123783034,0.2081049,96536.0,96535.0,0.7360939]
[1746123783635,0.2081049,96536.0,96535.0,0.7380939]
[1746123784236,0.2080839,96546.0,96545.0,0.2070847]
[1746123784436,0.2080839,96546.0,96545.0,0.5678847]
[1746123786132,0.2090839,96546.0,96545.0,0.5678847]
[1746123786529,0.2090839,96546.0,96545.0,0.6678847]
[1746123787843,0.20903056,96546.0,96545.0,0.6678847]
[1746123788342,0.20903056,96546.0,96545.0,0.4608]
[1746123789731,0.20903056,96546.0,96545.0,0.6678847]
[1746123792539,0.00194666,96546.0,96545.0,0.6678847]
[1746123792844,0.20902926,96546.0,96545.0,0.6678847]
[1746123793343,0.20902926,96546.0,96545.0,0.7338847]
[1746123793932,0.00194666,96546.0,96545.0,0.7338847]
[1746123794141,0.20902926,96546.0,96545.0,0.7338847]
[1746123797141,0.00194666,96546.0,96545.0,0.7338847]
[1746123797345,0.3105843,96561.0,96560.0,0.2070525]
[1746123797545,0.30145559,96561.0,96560.0,0.6678525]
[1746123797741,0.0517645,96558.0,96534.0,0.3608]
[1746123797949,0.051767,96554.0,96551.0,0.2588349]
[1746123798145,0.0517494,96586.0,96552.0,0.0957]
[1746123798446,0.3608,96577.0,96575.0,0.2070204]
[1746123798644,0.04322157,96586.0,96584.0,0.3070011]
[1746123798846,0.2069824,96599.0,96598.0,0.2069668]
[1746123799033,0.2069824,96599.0,96598.0,0.38016141]
[1746123800441,0.2079824,96599.0,96598.0,0.38016141]
[1746123800637,0.2079824,96599.0,96598.0,0.74096141]
[1746123800846,0.2099824,96599.0,96598.0,0.74096141]
[1746123801445,0.2420824,96599.0,96598.0,0.74096141]
[1746123801647,0.2400824,96599.0,96598.0,0.74096141]
[1746123803744,0.051732,96619.0,96605.0,0.2069561]
[1746123803949,0.2586946,96610.0,96609.0,0.0517366]
[1746123804651,0.2586946,96610.0,96609.0,0.3104143]
[1746123804851,0.2586946,96610.0,96609.0,0.2069411]
[1746123805150,0.2069539,96606.0,96605.0,0.3069534]
[1746123805544,0.2069539,96606.0,96605.0,0.1]
[1746123805944,0.2069539,96606.0,96605.0,0.1654]
[1746123806552,0.2069539,96606.0,96599.0,0.2069685]
[1746123806553,0.2069689,96600.0,96599.0,0.2069685]
[1746123806856,0.2069689,96600.0,96599.0,0.2723685]
[1746123807354,0.2694689,96600.0,96599.0,0.2723685]
[1746123807550,0.2694689,96600.0,96599.0,0.3723685]
[1746123814368,0.2694689,96600.0,96599.0,0.3069685]
[1746123814667,0.2694689,96600.0,96599.0,0.3723685]
[1746123815260,0.3006689,96600.0,96599.0,0.3723685]
[1746123816068,0.2694689,96600.0,96599.0,0.3723685]
[1746123816267,0.2694689,96600.0,96599.0,0.4359685]
[1746123816868,0.2694689,96600.0,96599.0,0.3359685]
[1746123819568,0.2069689,96599.0,96598.0,0.36526571]
[1746123819761,0.2069689,96599.0,96598.0,0.0079218]
[1746123819961,0.2069882,96590.0,96589.0,0.0654]
[1746123820170,0.2069925,96588.0,96587.0,0.2069938]
[1746123820368,0.2069925,96588.0,96587.0,0.2723938]
[1746123820869,0.2690925,96588.0,96587.0,0.2723938]
[1746123821060,0.2690925,96588.0,96587.0,0.3723938]
[1746123821564,0.2690925,96588.0,96587.0,0.3733938]
[1746123822672,0.2690925,96588.0,96587.0,0.1664]
[1746123823773,0.2690925,96588.0,96587.0,0.17410447]
[1746123825171,0.2690925,96588.0,96587.0,0.10870447]
[1746123826580,0.2700925,96588.0,96587.0,0.10770447]
[1746123827175,0.2710925,96588.0,96587.0,0.10770447]
[1746123829368,0.3746245,96588.0,96587.0,0.1]
[1746123832273,0.3746245,96588.0,96572.0,0.0837566]
[1746123832274,0.0517531,96579.0,96568.0,0.06584]
[1746123832578,0.2070332,96569.0,96568.0,0.0535226]
[1746123832777,0.2070332,96569.0,96568.0,0.00762584]
[1746123832969,0.2070354,96568.0,96553.0,0.06584]
[1746123833164,0.2070633,96555.0,96553.0,0.06584]
[1746123833370,0.5678633,96555.0,96542.0,0.2389897]
[1746123833678,0.5678633,96555.0,96542.0,0.2389896]
[1746123833877,0.5678633,96555.0,96542.0,0.0319]
[1746123834083,0.6294633,96555.0,96543.0,0.2070888]
[1746123834780,0.6304633,96555.0,96543.0,0.2070888]
[1746123835482,0.6304633,96555.0,96544.0,0.2070868]
[1746123835682,0.6304633,96555.0,96543.0,0.051772]
[1746123835981,0.6304633,96555.0,96545.0,0.20811978]
[1746123836674,0.6822149,96555.0,96546.0,0.0325]
[1746123837573,0.6822149,96555.0,96554.0,0.00937976]
[1746123842376,0.3214149,96555.0,96554.0,0.00937976]
[1746123842882,0.3214149,96555.0,96554.0,0.04207976]
[1746123843489,0.6822149,96555.0,96554.0,0.04207976]
[1746123843778,0.6812149,96555.0,96554.0,0.04207976]
[1746123843977,0.2902149,96555.0,96554.0,0.24914516]
[1746123844177,0.2588149,96555.0,96554.0,0.24914516]
[1746123844579,0.2588149,96555.0,96554.0,0.28154516]
[1746123845281,0.3608,96563.0,96554.0,0.28154516]
[1746123845282,0.3608,96563.0,96561.0,0.2070482]
[1746123845583,0.62063866,96563.0,96562.0,0.0637]
[1746123845775,0.62063866,96563.0,96562.0,0.2707482]
[1746123847078,0.25983866,96563.0,96562.0,0.2707482]
[1746123847283,0.25983866,96563.0,96562.0,0.0637]
[1746123848483,0.25983866,96563.0,96562.0,0.0647]
[1746123849280,0.25983866,96563.0,96562.0,0.2717482]
[1746123849480,0.25983866,96563.0,96562.0,0.2727482]
[1746123849680,0.25983866,96563.0,96562.0,0.2717482]
[1746123849984,0.25983866,96563.0,96562.0,0.2707482]
[1746123850282,0.25983866,96563.0,96562.0,0.0637]
[1746123850476,0.25983866,96563.0,96562.0,0.2707482]
[1746123850676,0.25983866,96563.0,96562.0,0.2717482]
[1746123851384,0.258769,96582.0,96581.0,0.258752]
[1746123851779,0.31004096,96582.0,96581.0,0.258752]
[1746123852180,0.31004096,96582.0,96581.0,0.2070011]
[1746123852582,0.2070097,96580.0,96579.0,0.240211]
[1746123853686,0.2070097,96580.0,96579.0,0.241211]
[1746123857687,0.2070097,96580.0,96579.0,0.2412118]
[1746123858187,0.2070097,96580.0,96579.0,0.2402118]
[1746123858487,0.2070097,96580.0,96579.0,0.2412118]
[1746123858889,0.2070097,96580.0,96579.0,0.3412118]
[1746123861182,0.2070097,96580.0,96579.0,0.1342]
[1746123861385,0.2070097,96580.0,96579.0,0.101]
[1746123861585,0.2070097,96580.0,96579.0,0.001]
[1746123861791,0.2700097,96580.0,96579.0,0.001]
[1746123862988,0.2700097,96580.0,96579.0,0.101]
[1746123867495,0.2700097,96580.0,96579.0,0.3080118]
[1746123867790,0.2379097,96580.0,96579.0,0.3080118]
[1746123867983,0.2379097,96580.0,96579.0,0.6688118]
[1746123868382,0.2379097,96580.0,96579.0,0.3399118]
[1746123873483,0.2379097,96580.0,96579.0,0.1329]
[1746123876185,0.2379097,96580.0,96579.0,0.3399118]
[1746123876488,0.2379097,96580.0,96579.0,0.1329]
[1746123876991,0.2379097,96580.0,96579.0,0.3399118]
[1746123877194,0.2379097,96580.0,96579.0,0.1329]
[1746123877387,0.2379097,96580.0,96579.0,0.3399118]
[1746123880594,0.2379097,96580.0,96579.0,0.1329]
[1746123880798,0.2379097,96580.0,96579.0,0.101]
[1746123882389,0.2379097,96580.0,96579.0,0.1]
[1746123882597,0.2389097,96580.0,96579.0,0.1]
[1746123883390,0.2399097,96580.0,96579.0,0.1]
[1746123884000,0.2389097,96580.0,96579.0,0.1]
[1746123884300,0.2399097,96580.0,96579.0,0.1]
[1746123885301,0.2389097,96580.0,96579.0,0.1]
[1746123885501,0.2399097,96580.0,96579.0,0.1]
[1746123886197,0.2389097,96580.0,96579.0,0.1]
[1746123886397,0.2399097,96580.0,96579.0,0.1]
[1746123887802,0.2389097,96580.0,96579.0,0.1]
[1746123888004,0.2399097,96580.0,96579.0,0.1]
[1746123888404,0.2389097,96580.0,96579.0,0.1]
[1746123892009,0.2399097,96580.0,96579.0,0.3391118]
[1746123892203,0.2389097,96580.0,96579.0,0.1321]
[1746123892510,0.2399097,96580.0,96579.0,0.1321]
[1746123892701,0.2730097,96580.0,96579.0,0.1321]
[1746123893106,0.2720097,96580.0,96579.0,0.1321]
[1746123893701,0.2720097,96580.0,96579.0,0.1646]
[1746123893902,0.2710097,96580.0,96579.0,0.1646]
[1746123895908,0.2710097,96580.0,96579.0,0.1325]
[1746123896702,0.2710097,96580.0,96579.0,0.1]
[1746123897104,0.2720097,96580.0,96579.0,0.1]
[1746123901803,0.2389097,96580.0,96579.0,0.3070118]
[1746123902412,0.2389097,96580.0,96579.0,0.3374118]
[1746123903111,0.2379097,96580.0,96579.0,0.3374118]
[1746123903315,0.2379097,96580.0,96579.0,0.3394118]
[1746123904612,0.2379097,96580.0,96579.0,0.3384118]
[1746123904814,0.2379097,96580.0,96579.0,0.3394118]
[1746123905715,0.2379097,96580.0,96579.0,0.102]
[1746123906414,0.2706097,96580.0,96579.0,0.102]
[1746123907718,0.2716097,96580.0,96579.0,0.101]
[1746123908110,0.2726097,96580.0,96579.0,0.1]
[1746123908811,0.207059,96557.0,96556.0,0.3922]
[1746123909012,0.207059,96557.0,96556.0,0.457]
[1746123909214,0.207059,96557.0,96556.0,0.6640611]
[1746123909919,0.268359,96557.0,96556.0,0.6640611]
[1746123910418,0.268359,96557.0,96556.0,0.6680611]
[1746123910812,0.268359,96557.0,96556.0,0.6720611]
[1746123911412,0.268359,96557.0,96556.0,0.6700611]
[1746123912618,0.268359,96557.0,96556.0,0.6680611]
[1746123913719,0.268359,96557.0,96556.0,0.7680611]
[1746123915028,0.268359,96557.0,96556.0,0.7660611]
[1746123915231,0.268359,96557.0,96556.0,0.7670611]
[1746123915634,0.268359,96557.0,96556.0,0.7660611]
[1746123917030,0.2070488,96562.0,96561.0,0.2070504]
[1746123917229,0.2070488,96562.0,96561.0,0.3070504]
[1746123919741,0.2070488,96562.0,96561.0,0.3090504]
[1746123919930,0.2070488,96562.0,96561.0,0.3110504]
[1746123922638,0.2070488,96562.0,96561.0,0.3090504]
[1746123922939,0.2070488,96562.0,96561.0,0.3110504]
[1746123923326,0.2070488,96562.0,96561.0,0.3421504]
[1746123923641,0.2399488,96562.0,96561.0,0.3421504]
[1746123925934,0.2399488,96562.0,96561.0,0.3411504]
[1746123926136,0.2399488,96562.0,96561.0,0.3421504]
[1746123926442,0.2399488,96562.0,96561.0,0.3401504]
[1746123926643,0.2399488,96562.0,96561.0,0.3421504]
[1746123927041,0.2399488,96562.0,96561.0,0.3411504]
[1746123928134,0.2399488,96562.0,96561.0,0.3421504]
[1746123928350,0.2399488,96562.0,96561.0,0.1351]
[1746123928637,0.2399488,96562.0,96561.0,0.102]
[1746123928843,0.41736001,96562.0,96540.0,0.00011214]
[1746123929045,0.2070911,96542.0,96540.0,0.00011214]
[1746123929543,0.2070911,96542.0,96541.0,0.46267245]
[1746123929732,0.2070911,96542.0,96541.0,0.47027245]